Cogmind - Beta 16 @@@ ROGUE MODE // 2025.10.31 @ 23:19:29 Player: FAQ Result: Destroyed by as-11924 with Assembled Maul Performance ------------- Evolutions (1) 500 Regions Visited (4) 800 Robots Destroyed (21) 105 Value Destroyed (656) 656 Prototype IDs (0) 0 Alien Tech Used (0) 0 Bonus (0) 0 TOTAL SCORE: 2061 Bonus ------- None Cogmind --------- Core Integrity 0/400 Matter 300/300 Energy 100/100 System Corruption 0% Temperature Cool (0) Movement Walking (120) Location -9/Mines Parts ------- > --- POWER (1) -------- (None) > --- PROPULSION (4) --- Aluminum Leg Aluminum Leg > --- UTILITY (2) ------ Medium Storage Unit Medium Armor Plating > --- WEAPON (2) ------- (None) > --- INVENTORY (10) --- Small Storage Unit Improved Targeting Computer Peak State ------------ > --- POWER ------------ Improved Ion Engine > --- PROPULSION ------- Titanium Leg Titanium Leg Titanium Leg Titanium Leg > --- UTILITY ---------- Improved Heat Sink Medium Storage Unit > --- WEAPON ----------- Field Laser Field Laser > --- INVENTORY -------- Light Ion Engine Aluminum Leg Aluminum Leg Aluminum Leg Aluminum Leg Small Storage Unit EM Pulse Gun Field Laser Field Laser Light Assault Rifle [Rating: 25] Favorites ----------- Power Ion Engine Engine Ion Engine Propulsion Titanium Leg Leg Titanium Leg Utility Medium Storage Unit Device Improved Heat Sink Storage Medium Storage Unit Protection Light Armor Plating Weapon Field Laser Energy Gun Field Laser Build | -11 -10 -10 -9 -9 ------- Run | Yrd Mat Min Mat Min Slots Evolved 2 | . . . 2 . Power . | . . . . . Propulsion 2 | . . . 2 . Utility . | . . . . . Weapon . | . . . . . Parts Attached 27 | 6 3 . 14 4 Power 6 | 1 . . 5 . Engine 6 | 1 . . 5 . Core . | . . . . . Reactor . | . . . . . Propulsion 9 | 2 1 . 5 1 Treads . | . . . . . Leg 9 | 2 1 . 5 1 Wheel . | . . . . . Hover . | . . . . . Flight . | . . . . . Utility 5 | 1 1 . 2 1 Device 1 | . . . 1 . Storage 2 | 1 1 . . . Processor . | . . . . . Hackware . | . . . . . Protection 2 | . . . 1 1 Artifact . | . . . . . Weapon 7 | 2 1 . 2 2 Energy Gun 7 | 2 1 . 2 2 Energy Cannon . | . . . . . Ballistic Gun . | . . . . . Ballistic Cannon . | . . . . . Launcher . | . . . . . Special Weapon . | . . . . . Impact Weapon . | . . . . . Slashing Weapon . | . . . . . Piercing Weapon . | . . . . . Special Melee Weapon . | . . . . . Unidentified Prototypes . | . . . . . Parts Lost 13 | . . . 2 11 Power 3 | . . . 1 2 Propulsion 4 | . . . . 4 Utility 2 | . . . 1 1 Weapon 4 | . . . . 4 Highest Loss Streak 11 | . . . 2 11 To Critical Strikes . | . . . . . Average Backups 7 | 1 4 9 9 5 Power 1 | . 1 2 . . Propulsion 2 | . 2 3 3 1 Utility 1 | . . 1 1 2 Weapon 2 | . 1 1 3 . Tool/Special . | . . . . . Unused Backups 9 | . . 2 6 1 Power 1 | . . . 1 . Propulsion 6 | . . 2 4 . Utility 1 | . . . . 1 Weapon 1 | . . . 1 . Tool/Special . | . . . . . Average Slot Usage (%) 87 | . 84 85 96 66 Engine 11 | . 14 14 10 6 Leg 35 | . 28 28 42 29 Device 3 | . . . 6 . Storage 11 | . 14 14 11 11 Protection 2 | . . . 2 8 Energy Gun 22 | . 27 28 21 11 Peak Build Rating 25 | 6 7 7 25 20 Average Rating 14 | 5 6 6 22 11 On Entrance 7 | . 6 6 7 17 Avg Prop Armor Cover (%) 12 | . . . 12 11 Naked Turns . | . . . . . Heaviest Build 24 | 14 19 19 24 24 Greatest Support 68 | 20 20 20 68 27 Greatest Overweight (x) 3 | . . . 1 3 Average Overweight (x) . | . . . . . Largest Inventory Capacity 10 | 8 10 10 10 10 Average Capacity 9 | 7 8 10 10 10 Most Carried 10 | 4 7 10 10 9 Average Carried 7 | 2 4 9 9 5 Final Capacity 10 | 8 10 10 10 10 Final Carried 10 | 4 7 10 10 2 Class Distribution -------------------- 100% | Mutant Dominant Class ---------------- Mutant | -10/Materials Mutant | -10/Mines Mutant | -9/Materials Mutant | -9/Mines Resources | -11 -10 -10 -9 -9 ----------- Run | Yrd Mat Min Mat Min Matter Collected 460 | 212 41 37 140 30 Remotely . | . . . . . Salvage Created 876 | 93 85 117 560 21 Parts 42 | 1 2 7 30 2 Haulers Intercepted . | . . . . . Recyclers Shooed . | . . . . . Parts Field Recycled . | . . . . . Retrieved Matter . | . . . . . Parts Self-Destructed . | . . . . . Prevented . | . . . . . Parts Restored . | . . . . . Kills | -11 -10 -10 -9 -9 ------- Run | Yrd Mat Min Mat Min Combat Hostiles Destroyed 17 | . 2 4 11 . Guns 17 | . 2 4 11 . Classes Destroyed 7 | 1 1 1 3 1 Worker 1 | . . . . 1 Recycler 1 | 1 . . . . Watcher 2 | . . . 2 . Swarmer 2 | . . 2 . . Grunt 11 | . 2 2 7 . Brawler 1 | . . . 1 . Sentry 3 | . . . 3 . Best Kill Streak 3 | 1 2 2 3 1 Combat Bots Only 3 | . 2 2 3 . Max Kills in Single Turn 1 | 1 1 1 1 1 Gunslinging . | . . . . . Exploded . | . . . . . Melee . | . . . . . Uniques/NPCs Destroyed . | . . . . . Combat | -11 -10 -10 -9 -9 -------- Run | Yrd Mat Min Mat Min Hostile Shots Fired 171 | . 11 26 73 61 Missed 50 | . 4 7 21 18 Hits 121 | . 7 19 52 43 Melee 3 | . . . 2 1 Projectile 118 | . 7 19 50 42 AOE 26 | . . . . 26 Critical Strikes 2 | . 1 . 1 . Damage Taken 2219 | . 92 202 752 1173 Core 484 | . 38 26 100 320 Absorbed by Shields . | . . . . . Core Remaining (%) 87 | 100 . 74 . . Volleys Fired 80 | 5 6 13 43 13 Largest 2 | 2 2 2 2 2 Hottest 126 | 90 100 100 126 103 Shots Fired 150 | 10 12 26 86 16 Gun 150 | 10 12 26 86 16 Cannon . | . . . . . Launcher . | . . . . . Special . | . . . . . Kinetic . | . . . . . Thermal 141 | 5 12 26 86 12 Explosive . | . . . . . Electromagnetic 9 | 5 . . . 4 Robot Hit Streak 7 | 5 6 5 7 3 Robot Miss Streak 5 | 1 1 5 5 5 Penetration Max . | . . . . . Secondary Targets 4 | . 1 . 3 . Max Gunslinging Chain 1 | . 1 . 1 . Shots Hit Robots 81 | 8 9 10 45 9 Core Hits 36 | 2 5 7 19 3 Critical Kills . | . . . . . Critical Parts Destroyed . | . . . . . Critical Strikes 10 | 1 2 1 6 . Burn 10 | 1 2 1 6 . Melee Attacks . | . . . . . Impact . | . . . . . Slashing . | . . . . . Piercing . | . . . . . Sneak Attacks . | . . . . . Combat Hostiles . | . . . . . Follow-up Attacks . | . . . . . Damage Inflicted 1291 | 100 110 123 800 158 Guns 1291 | 100 110 123 800 158 Cannons . | . . . . . Explosions . | . . . . . Melee . | . . . . . Ramming . | . . . . . Kinetic . | . . . . . Thermal 1205 | 37 110 123 800 135 Explosive . | . . . . . Electromagnetic 86 | 63 . . . 23 Impact . | . . . . . Slashing . | . . . . . Piercing . | . . . . . Highest Corruption 2 | . 2 2 . . Average Corruption 2 | . 2 2 . . Corruption Purged . | . . . . . Corruption Blocked . | . . . . . Effects 2 | . 1 1 . . Heat Flow Errors 1 | . 1 . . . Data Loss (minor) 1 | . . 1 . . Overload Shots . | . . . . . Overflow Damage . | . . . . . Projectiles . | . . . . . Explosions . | . . . . . Melee . | . . . . . Knockbacks . | . . . . . Impact . | . . . . . Kinetic . | . . . . . Secondary . | . . . . . Self-Inflicted Damage . | . . . . . Shots . | . . . . . Rammed . | . . . . . Targets Rammed . | . . . . . Kicked . | . . . . . Crushed . | . . . . . Highest Temperature 384 | 150 294 300 384 123 Average Temperature 134 | 75 142 149 143 71 Received Heat Transfer 420 | . 69 72 279 . Effects 5 | . . . 5 . Energy Bleed 3 | . . . 3 . Short Circuit 2 | . . . 2 . Siege Activations . | . . . . . Martial Activations . | . . . . . Shielding Activations . | . . . . . Robots Disrupted . | . . . . . Combat Hostiles . | . . . . . Robots Corrupted . | . . . . . Combat Hostiles . | . . . . . Parts Fried 1 | 1 . . . . Impact Corruptions . | . . . . . Robots Melted . | . . . . . Combat Hostiles . | . . . . . Parts Melted 6 | . 3 . 3 . Heat Transferred 3589 | 185 481 444 2183 296 Parts Sabotaged . | . . . . . Parts Stolen . | . . . . . Parts Stripped . | . . . . . Power Chain Reactions . | . . . . . Alert | -11 -10 -10 -9 -9 ------- Run | Yrd Mat Min Mat Min Maximum Alert Level . | . . . . . Low Security (%) 100 | 100 100 100 100 100 Level 1 . | . . . . . Level 2 . | . . . . . Level 3 . | . . . . . Level 4 . | . . . . . Level 5 . | . . . . . High Security . | . . . . . Max Security . | . . . . . Peak Influence 143 | 5 51 50 143 49 Initial 49 | . . 12 15 49 Average 32 | . 11 20 51 14 Influence Increases 475 | 5 56 90 319 5 Destroy 0b10 Robot/C 340 | . 40 80 220 . Destroy 0b10 Robot/NC 20 | 5 . . 10 5 Destroy Leader 94 | . 10 10 74 . Successful Hack 5 | . 5 . . . Destroy Structure 1 | . 1 . . . Lose Combat Pursuer 15 | . . . 15 . Influence Decreases 475 | 5 25 81 232 132 Entered New Map 122 | . . 19 25 78 Time Decay 299 | 5 25 62 187 20 Lost Part 54 | . . . 20 34 Squads Dispatched 1 | . . . 1 . Investigation . | . . . . . Extermination . | . . . . . Reinforcement 1 | . . . 1 . Assault . | . . . . . Garrison . | . . . . . Intercept . | . . . . . Searches Triggered . | . . . . . Construction Impeded . | . . . . . Haulers Reinforced . | . . . . . Active Scanning Responses . | . . . . . Cargo Convoy Interrupts . | . . . . . Stealth | -11 -10 -10 -9 -9 --------- Run | Yrd Mat Min Mat Min Distress Signals 3 | . 1 . 2 . Communications Jammed . | . . . . . Distress Signals . | . . . . . Times Spotted 30 | . 2 5 16 7 Peak Tracking Total 7 | . 3 3 7 5 Tactical Retreats 1 | . . . 1 . Traps | -11 -10 -10 -9 -9 ------- Run | Yrd Mat Min Mat Min Traps Triggered 2 | . 1 . 1 . Indirectly . | . . . . . Trap Hack Attempts . | . . . . . Triggered . | . . . . . Disarmed . | . . . . . Reprogrammed . | . . . . . Reused . | . . . . . Traps Extracted . | . . . . . Installed . | . . . . . Triggered . | . . . . . Machines | -11 -10 -10 -9 -9 ---------- Run | Yrd Mat Min Mat Min Machines Disabled . | . . . . . Max in Single Turn . | . . . . . Machines Repaired . | . . . . . Machines Dismantled . | . . . . . Machines Sabotaged . | . . . . . Overloaded Fab Kills . | . . . . . Hacking | -11 -10 -10 -9 -9 --------- Run | Yrd Mat Min Mat Min Machines Accessed 4 | . 3 . 1 . Terminals 4 | . 3 . 1 . Fabricators . | . . . . . Repair Stations . | . . . . . Recycling Units . | . . . . . Scanalyzers . | . . . . . Garrison Access . | . . . . . Total Hacks 6 | . 5 . 1 . Successful 2 | . 2 . . . Failed 4 | . 3 . 1 . Catastrophic 1 | . 1 . . . Database Lockouts . | . . . . . Manual 6 | . 5 . 1 . Terminals 6 | . 5 . 1 . Fabricators . | . . . . . Repair Stations . | . . . . . Recycling Units . | . . . . . Scanalyzers . | . . . . . Garrison Access . | . . . . . Terminal Hacks . | . . . . . Fabricator Hacks . | . . . . . Repair Station Hacks . | . . . . . Recycling Unit Hacks . | . . . . . Scanalyzer . | . . . . . Garrison Access Hacks . | . . . . . Unauthorized Hacks 2 | . 2 . . . Terminals 2 | . 2 . . . Botnet 2 | . 2 . . . Fabricators . | . . . . . Repair Stations . | . . . . . Recycling Units . | . . . . . Scanalyzers . | . . . . . Garrison Access . | . . . . . Data Cores Recovered . | . . . . . Used . | . . . . . Hacking Detections 4 | . 3 . 1 . Full Trace Events . | . . . . . Feedback Events . | . . . . . Feedback Blocked . | . . . . . Robot Schematics Acquired . | . . . . . Robots Built . | . . . . . Authchips . | . . . . . Time . | . . . . . Total Robot Build Rating . | . . . . . Part Schematics Acquired . | . . . . . Parts Built . | . . . . . Authchips . | . . . . . Time . | . . . . . Total Part Build Rating . | . . . . . Part Studies Acquired . | . . . . . Parts Repaired . | . . . . . Time . | . . . . . Parts Recycled . | . . . . . Recycled Matter . | . . . . . Retrieved Matter . | . . . . . Retrieved Components . | . . . . . Parts Scanalyzed . | . . . . . Part Schematics Acquired . | . . . . . Parts Damaged . | . . . . . Bothacking | -11 -10 -10 -9 -9 ------------ Run | Yrd Mat Min Mat Min Used RIF Installer . | . . . . . Robots Hacked . | . . . . . Non-combat . | . . . . . Combat . | . . . . . Robot Hacks Applied . | . . . . . Relay Couplers Released . | . . . . . Fabnet Peak Effective % . | . . . . . Robots Rewired . | . . . . . Allies Hacked . | . . . . . Hacks Repelled . | . . . . . Allies | -11 -10 -10 -9 -9 -------- Run | Yrd Mat Min Mat Min Total Allies . | . . . . . Largest Group . | . . . . . Highest-Rated Group . | . . . . . Highest-Rated Ally . | . . . . . Total Orders . | . . . . . Ally Attacks . | . . . . . Total Damage . | . . . . . Kills . | . . . . . Allies Corrupted . | . . . . . Allies Melted . | . . . . . Intel | -11 -10 -10 -9 -9 ------- Run | Yrd Mat Min Mat Min Active Infowar (turns) . | . . . . . Robot Analysis Total . | . . . . . Derelict Logs Recovered 1 | . . 1 . . Drone Launches . | . . . . . Drone Recoveries . | . . . . . Exploration | -11 -10 -10 -9 -9 ------------- Run | Yrd Mat Min Mat Min Turns Passed 1122 | 73 166 171 567 145 Spaces Moved 640 | 39 118 104 296 83 Core 4 | 2 . . . 2 Treads . | . . . . . Legs 636 | 37 118 104 296 81 Wheels . | . . . . . Hover . | . . . . . Flight . | . . . . . Fastest Speed 50 | 50 120 120 120 120 Average Speed 124 | 116 120 120 129 124 Slowest Speed 200 | 120 120 120 200 200 Overloaded Moves . | . . . . . Propulsion Burnouts . | . . . . . Robots Hopped . | . . . . . Potential Cave-ins 3 | . . . . 3 Cave-ins Triggered . | . . . . . Exploration Rate (%) 23 | 3 23 49 25 17 Regions Visited 4 Branch Regions 2 Pre-discovered Areas 1 | . . 1 . . Known Exits Taken . | . . . . . Unknown Exits Taken 4 | 1 1 1 1 . Scrap Searched . | . . . . . Spaces Dug . | . . . . . Terrain Destroyed . | . . . . . Melee . | . . . . . Projectile . | . . . . . AOE . | . . . . . Terrain Rammed . | . . . . . Walls Destroyed . | . . . . . Machines Disabled . | . . . . . Actions | -11 -10 -10 -9 -9 --------- Run | Yrd Mat Min Mat Min Total 814 | 53 130 125 396 110 Wait 29 | . 1 2 20 6 Move 636 | 38 117 103 295 83 Hop . | . . . . . Pick Up 17 | 4 1 5 7 . Fast Attach 11 | 6 1 . 4 . Attach 11 | . 1 . 3 7 Detach 3 | . 2 . 1 . Swap 10 | . 1 . 9 . Drop 17 | . . 2 14 1 Fire 80 | 5 6 13 43 13 Melee . | . . . . . Ram . | . . . . . Kick . | . . . . . Crush . | . . . . . Escape Stasis . | . . . . . Rewire . | . . . . . Trap . | . . . . . Miscellaneous . | . . . . . Route ------- -11/Scrapyard -10/Materials -10/Mines -9/Materials -9/Mines History --------- Turn | Location | Event 12 | -11/Scrapyard | Discovered new exit (range 15) 74 | -11/Scrapyard | Entered Materials 149 | -10/Materials | Discovered new exit (range 12) 240 | -10/Materials | Entered Mines 306 | -10/Mines | Build established: Mutant 373 | -10/Mines | Discovered new exit (range 14) 399 | -10/Mines | Found a Scrap Suit stashed away for nefarious purposes 407 | -10/Mines | Learned location of Storage (-8) 411 | -10/Mines | Entered Materials 411 | -9/Materials | Evolved 2 slots: Propulsion x2 961 | -9/Materials | Discovered new exit (range 11) 978 | -9/Materials | Entered Mines 979 | -9/Mines | Assembled infested the area 984 | -9/Mines | Assisted by a Guerilla fighting off Assembled 1043 | -9/Mines | Core integrity fell below 50% 1065 | -9/Mines | Core integrity fell below 20% 1095 | -9/Mines | Lost 11 parts (2p4n1u4w) 1123 | -9/Mines | Destroyed by as-11924 with Assembled Maul Last Messages --------------- 01079_ U-05 Engineer builds a Wall. 01079_ K-01 Serf collects debris. 01080_ The unstable cave ceiling collapses. 01081_ Acquired 13 matter. 01083_ The unstable cave ceiling collapses. 01083_ U-05 Engineer lays Concrete. 01086_ The unstable cave ceiling collapses. 01088_ K-01 Serf collects debris. 01090_ The unstable cave ceiling collapses. 01090_ U-05 Engineer lays Concrete. 01091_ K-01 Serf collects debris. 01093_ U-05 Engineer builds a Wall. 01095_ K-01 Serf collects debris. 01098_ U-05 Engineer lays Concrete. 01098_ K-01 Serf collects debris. 01099_ U-05 Engineer builds a Wall. 01104_ The unstable cave ceiling collapses. 01107_ U-05 Engineer builds a Wall. 01109_ The unstable cave ceiling collapses. 01123_ S-10 Pest destroyed. Map ----- +----------------------------------------------------+ | ??????????????????????????????????????????????? | | ??????????????????????????????????????????????? | | ??????????????????????????????????????????????? | | ??????????????????????????????????????????????? | | ??????????????????????????????????????????????? | | ??????????????????????????????????????????????? | | ??????????????????????????????????????????????? | | ??????????????????????????????????????????????? | | ??????????????????????????????????????????????? | | ??????????????????????????????????????????????? | | ??????????????????????????????????????????????? | | ??????????????????????????????????????????????? | | ??????????????????????????????????????????????? | | ??????????????????????????????????????????????? | | ??????????????????????????????????????????????? | | ??????????????????????????????????????????????? | | ??????????????????????????????????????????????? | | ??????????????????????????????????????????????? | | ???????????????????????????????????###????????? | | ??????????????????????????????????? $#????????? | | ???????????????????????#####???????# #????????? | | ????????????????????#### ##??????# #????????? | | ???????????????????## ###????# ########?? | | ???????????????????# ###### # #?? | | ???????????????????# s % ## # #?? | | ???????????????????# s@aa ===* #?? | | ????########???????# """ ## # #?? | | ??### # # ##??????# """ ### ### # [ #?? | | ?## ## # ##?????# """ ##?####?# # #?? | | ##### ### ######## ##???????# # #?? | | ### #????????# # #?? | | # #???????? ########?? | | # # # # ###### #???????###????????? | | ## # ## #???# #?????????????????? | | ### # # ##???## ??????????????? | | % # # ##????##### # ##?????????????? | | ## # ####??????????### #??????????????? | | ## #######??????????????????#??????????????? | | # ## ##??????????????????????????????????????? | | # ?####???????????????????????????????????????? | | ##????????????????????????????????????????????? | | ??????????????????????????????????????????????? | | ??????????????????????????????????????????????? | | ??????????????????????????????????????????????? | | ??????????????????????????????????????????????? | | ??????????????????????????????????????????????? | | ??????????????????????????????????????????????? | | ??????????????????????????????????????????????? | | ??????????????????????????????????????????????? | | ??????????????????????????????????????????????? | +----------------------------------------------------+ Best States ------------- Heat Dissipation 42 Energy Generation 12 Energy Capacity 265 Matter Stores 300 Matter Capacity 300 Sight Range 16 Terrain Scan Density 10 Armor Coverage 225 Evasion (%) 55 Item Schematics ----------------- None Robot Schematics ------------------ None Fabricated ------------ Nothing Repaired ---------- Nothing Studied --------- None Alien Tech Used ----------------- None Achievements -------------- None Challenges ------------ None Game ------ Seed ThermicExpertAirjet Manual? 0 Play Time 00:11:46 Cumulative 19.2 hours Start 2025.10.31 @ 23:09:09 End 2025.10.31 @ 23:19:29 Sessions 1 Manual Loads 0 Difficulty Rogue Special Mode None Game No. 45 Rogue 45 Adventurer 0 Explorer 0 Win Type - Total 0 Types 0/0/0/0/0/0/0/0/0/0 Lore% 8 Gallery% 19 Achievement% 18 Wizard Run 0 Options --------- Layout 0 ASCII 1 Keyboard 1 Movement Numpad Keybinds 0 Fullscreen 1 Font 18/VGA_Max Map View 76x50 Zoom Use 0% Tactical HUD 1 Map Filters NONE Filters NONE Steam 1 RUN: 82b04efe-e83a-4bed-9bb2-2708ac6bb0d1